bitfinex/quotes_BTCUSD_20250331
["timestamp","ask_amount","ask_price","bid_price","bid_amount"]
[1743429913513,0.58661166,82942.0,82941.0,7.3e-07]
[1743429913853,0.62414527,82942.0,82941.0,7.3e-07]
[1743429914057,0.58661166,82942.0,82941.0,7.3e-07]
[1743429914548,0.31888281,82942.0,82941.0,7.3e-07]
[1743429914730,0.01888281,82942.0,82941.0,7.3e-07]
[1743429914876,0.03093881,82942.0,82941.0,7.3e-07]
[1743429915076,0.01988281,82942.0,82941.0,7.3e-07]
[1743429915284,0.001,82942.0,82941.0,0.13466059]
[1743429915487,0.001,82942.0,82941.0,0.12260459]
[1743429915686,0.013056,82942.0,82941.0,0.12260459]
[1743429915892,0.012056,82942.0,82941.0,7.3e-07]
[1743429916094,0.241129,82944.0,82941.0,7.3e-07]
[1743429916095,0.01888102,82948.0,82947.0,0.253172]
[1743429916296,0.241057,82968.0,82958.0,0.241085]
[1743429916496,0.01887958,82967.0,82958.0,0.37574286]
[1743429916726,0.10762625,82964.0,82958.0,0.37574286]
[1743429916926,4e-07,82959.0,82958.0,2.00771783]
[1743429917129,6.5e-07,82964.0,82963.0,0.253124]
[1743429917326,6.5e-07,82964.0,82963.0,0.37572786]
[1743429918538,0.00100065,82964.0,82963.0,0.37572786]
[1743429919332,0.00200065,82964.0,82963.0,0.37572786]
[1743429919950,0.002,82964.0,82963.0,0.37572786]
[1743429920611,0.002,82964.0,82963.0,0.12260386]
[1743429920869,0.002,82964.0,82963.0,0.13465686]
[1743429921075,0.002,82964.0,82963.0,0.12260386]
[1743429921332,0.002,82964.0,82963.0,0.53120256]
[1743429921945,0.0021684,82964.0,82963.0,0.54325556]
[1743429922246,0.0011684,82964.0,82963.0,0.54325556]
[1743429922504,0.0001684,82964.0,82963.0,0.54325556]
[1743429922712,0.0011684,82964.0,82963.0,0.54325556]
[1743429922833,0.0021684,82964.0,82963.0,0.54325556]
[1743429923047,0.0011684,82964.0,82963.0,0.54325556]
[1743429923455,0.0021684,82964.0,82963.0,0.54325556]
[1743429924100,0.0011684,82964.0,82963.0,0.54325556]
[1743429924600,0.0001684,82964.0,82963.0,0.54325556]
[1743429924978,0.0011684,82964.0,82963.0,0.54325556]
[1743429925374,0.0001684,82964.0,82963.0,0.54325556]
[1743429925621,0.0011684,82964.0,82963.0,0.53120256]
[1743429925756,0.253136,82959.0,82958.0,0.0003368]
[1743429926759,0.56767685,82959.0,82958.0,0.0003368]
[1743429926960,0.553136,82959.0,82958.0,0.0003368]
[1743429927170,0.32347901,82959.0,82958.0,0.12294066]
[1743429927303,0.33553301,82959.0,82958.0,0.0003368]
[1743429927905,0.33653301,82959.0,82958.0,0.0003368]
[1743429928356,0.32447901,82959.0,82958.0,0.0003368]
[1743429928703,0.02447901,82959.0,82958.0,0.13499466]
[1743429928905,0.02447901,82959.0,82958.0,0.78467836]
[1743429929324,0.02447901,82959.0,82958.0,0.53153936]
[1743429929472,0.03653301,82959.0,82958.0,0.53153936]
[1743429929689,0.27761501,82959.0,82958.0,0.53153936]
[1743429929878,0.02447901,82959.0,82958.0,0.53153936]
[1743429930261,0.02447901,82959.0,82958.0,0.54359336]
[1743429930461,0.02447901,82959.0,82958.0,0.71351336]
[1743429930699,4e-07,82964.0,82963.0,0.253124]
[1743429930890,4e-07,82964.0,82963.0,0.37572786]
[1743429931236,4e-07,82964.0,82963.0,0.12260386]
[1743429931453,4e-07,82964.0,82963.0,0.13465686]
[1743429931671,4e-07,82964.0,82963.0,0.14628584]
[1743429932414,0.0010004,82964.0,82963.0,0.14628584]
[1743429932644,0.0020004,82964.0,82963.0,1.37066211]
[1743429933019,4e-07,82964.0,82963.0,1.36966211]
[1743429933183,4e-07,82964.0,82963.0,0.14628584]
[1743429933391,0.0010004,82964.0,82963.0,0.14628584]
[1743429933799,0.0010004,82964.0,82963.0,0.38735684]
[1743429934006,0.0020004,82964.0,82963.0,0.38835684]
[1743429934413,0.0020004,82964.0,82963.0,1.61173311]
[1743429934567,4e-07,82964.0,82963.0,1.61173311]
[1743429934775,4e-07,82964.0,82963.0,1.69013311]
[1743429934991,4e-07,82964.0,82963.0,1.74253311]
[1743429935218,0.0001679,82976.0,82975.0,0.253087]
[1743429935418,0.0001679,82976.0,82975.0,0.92889055]
[1743429935696,0.0001679,82976.0,82975.0,0.93782941]
[1743429936330,0.0001679,82976.0,82975.0,0.76774941]
[1743429936531,0.25471914,82976.0,82975.0,0.51866241]
[1743429936744,0.00163514,82976.0,82975.0,0.51866241]
[1743429937152,0.24266814,82976.0,82975.0,0.51866241]
[1743429937362,0.25371914,82976.0,82975.0,0.51766241]
[1743429937582,0.00063514,82976.0,82975.0,0.51766241]
[1743429938062,0.00163514,82976.0,82975.0,0.52266241]
[1743429938363,0.00063514,82976.0,82975.0,0.77074941]
[1743429938714,0.00063514,82976.0,82975.0,0.77674941]
[1743429939121,0.00063514,82976.0,82975.0,0.77374941]
[1743429939722,0.00163514,82976.0,82975.0,0.77874941]
[1743429939960,0.00163514,82976.0,82975.0,0.77574941]
[1743429940154,0.00163514,82976.0,82975.0,0.94366941]
[1743429940353,0.00263514,82976.0,82975.0,0.94666941]
[1743429940557,0.24366814,82976.0,82975.0,0.52566241]
[1743429940798,0.24366814,82976.0,82975.0,0.01893886]
[1743429940799,0.25571914,82976.0,82975.0,0.01893886]
[1743429941004,0.33097333,82976.0,82975.0,0.01393886]
[1743429941192,0.24266814,82976.0,82975.0,0.003]
[1743429941430,0.25571914,82976.0,82975.0,0.008]
[1743429941782,0.241074,82962.0,82961.0,0.38411969]
[1743429941984,0.241069,82964.0,82961.0,0.50672355]
[1743429942197,0.241069,82964.0,82962.0,0.12260386]
[1743429942375,0.00163514,82976.0,82971.0,0.012052]
[1743429942577,0.01887705,82973.0,82972.0,0.25014902]
[1743429942776,0.01887705,82973.0,82972.0,0.38480488]
[1743429942996,0.01887705,82973.0,82972.0,0.38380488]
[1743429943195,0.04136287,82973.0,82972.0,0.38380488]
[1743429943624,0.02248582,82973.0,82972.0,0.76792457]
[1743429944095,0.00063514,82976.0,82975.0,0.253087]
[1743429944300,0.00063514,82976.0,82975.0,0.37469086]
[1743429944612,0.00063514,82976.0,82975.0,0.38362355]
[1743429945240,0.00063514,82976.0,82975.0,0.13153655]
[1743429945440,0.25371914,82976.0,82975.0,0.00893269]
[1743429945681,0.241061,82967.0,82962.0,0.241072]
[1743429945888,0.241051,82970.0,82963.0,0.13465686]
[1743429946090,0.012052,82969.0,82963.0,0.14216658]
[1743429946294,0.253121,82964.0,82963.0,0.00750972]
[1743429946648,0.25313,82961.0,82960.0,0.01]
[1743429946847,0.012052,82967.0,82960.0,0.01]
[1743429946848,0.001,82967.0,82966.0,0.253115]
[1743429947069,0.001,82967.0,82966.0,0.75983855]
[1743429947274,0.001,82967.0,82966.0,0.76737676]
[1743429947699,0.00163514,82976.0,82975.0,0.012051]
[1743429947912,5.4e-07,82979.0,82978.0,0.253078]
[1743429948105,5.4e-07,82979.0,82978.0,0.45568186]
[1743429948318,5.4e-07,82979.0,82978.0,0.46320953]
[1743429948539,5.4e-07,82979.0,82978.0,0.46220953]
[1743429949208,9.4e-07,82980.0,82979.0,0.253075]
[1743429949415,9.4e-07,82989.0,82988.0,0.253047]
[1743429949619,9.4e-07,82989.0,82988.0,0.38211014]
[1743429950262,9.4e-07,82989.0,82988.0,0.37106114]
[1743429950462,9.4e-07,82989.0,82988.0,0.13006314]
[1743429950664,9.4e-07,82989.0,82988.0,0.38311014]
[1743429951343,9.4e-07,82989.0,82988.0,0.13006314]
[1743429951606,9.4e-07,82989.0,82988.0,0.37006114]
[1743429951850,9.4e-07,82989.0,82988.0,0.00745928]
[1743429951851,0.25304494,82989.0,82988.0,0.00745928]
[1743429952315,0.241007,82985.0,82982.0,0.241015]
[1743429952519,0.241007,82985.0,82983.0,0.12260386]
[1743429952723,0.253053,82987.0,82984.0,0.24101]
[1743429952926,9.4e-07,82989.0,82985.0,0.12260386]
[1743429953129,0.241004,82986.0,82985.0,0.12260386]
[1743429953372,0.24099694,82989.0,82986.0,0.00745946]
[1743429953373,0.24099594,82989.0,82986.0,0.00745946]
[1743429953574,9.4e-07,82989.0,82988.0,0.253047]
[1743429953804,9.4e-07,82989.0,82988.0,0.37565086]
[1743429953988,9.4e-07,82989.0,82988.0,0.38313068]
[1743429954193,9.4e-07,82989.0,82988.0,0.76625037]
[1743429955945,0.00100094,82989.0,82988.0,0.77125037]
[1743429956299,0.25404494,82989.0,82988.0,0.51820337]
[1743429956562,0.25404494,82989.0,82988.0,0.39559951]
[1743429956960,0.27291593,82989.0,82988.0,0.39559951]
[1743429957136,0.01987193,82989.0,82988.0,0.77125037]
[1743429957339,0.00100094,82989.0,82988.0,0.77125037]
[1743429957796,0.01226027,82989.0,82988.0,0.77125037]
[1743429958033,0.01126027,82989.0,82988.0,0.76625037]
[1743429958233,0.01126027,82989.0,82988.0,0.77125037]
[1743429958766,0.03379132,82989.0,82988.0,0.77125037]
[1743429958969,0.04584032,82989.0,82988.0,0.51820337]
[1743429959171,0.03379132,82989.0,82988.0,0.51820337]
[1743429959375,0.03379132,82989.0,82988.0,0.76625037]
[1743429959792,0.03479132,82989.0,82988.0,0.77125037]
[1743429960241,0.03495962,82989.0,82988.0,0.77125037]
[1743429960446,0.03495962,82989.0,82988.0,0.51820337]
[1743429960650,0.03495962,82989.0,82988.0,0.75920137]
[1743429960858,0.03495962,82989.0,82988.0,0.77125037]
[1743429961779,0.03395962,82989.0,82988.0,0.76625037]
[1743429962207,0.03495962,82989.0,82988.0,0.77025037]
[1743429962609,0.03395962,82989.0,82988.0,0.76625037]
[1743429963024,0.03495962,82989.0,82988.0,0.77025037]
[1743429963482,0.03395962,82989.0,82988.0,0.76625037]
[1743429964371,0.27495462,82989.0,82988.0,0.51320337]
[1743429964544,0.03395962,82989.0,82988.0,0.76625037]
[1743429964925,6.2e-07,82989.0,82988.0,0.77025037]
[1743429965145,6.2e-07,82989.0,82988.0,0.85005037]
[1743429965347,0.0122125,83025.0,82988.0,0.85005037]
[1743429965348,0.0001685,83025.0,83018.0,0.252956]
[1743429965571,0.0001685,83025.0,83019.0,0.240908]
[1743429965779,0.0001685,83025.0,83019.0,0.92812436]
[1743429965975,0.0001685,83025.0,83019.0,0.93308449]
[1743429966584,0.0001685,83025.0,83019.0,0.93322423]
[1743429966813,0.0001685,83025.0,83019.0,0.93122423]
[1743429968329,0.0011685,83020.0,83019.0,0.93622423]
[1743429968732,0.0011685,83020.0,83019.0,0.51823123]
[1743429969099,0.2420735,83020.0,83019.0,0.13511216]
[1743429969300,0.0011685,83020.0,83019.0,0.13511216]
[1743429969524,0.0011685,83020.0,83019.0,0.14956613]
[1743429970111,0.0011685,83020.0,83019.0,0.5326852]
[1743429970315,0.0001685,83025.0,83019.0,0.5326852]
[1743429970316,0.0001685,83025.0,83024.0,0.257938]
[1743429970710,0.0001684,83041.0,83040.0,0.252889]
[1743429970913,0.00905924,83050.0,83048.0,0.012041]
[1743429970914,7e-07,83049.0,83048.0,0.012041]
[1743429971113,7e-07,83049.0,83048.0,0.5498761]
[1743429971266,7e-07,83049.0,83048.0,0.54972199]
[1743429972255,0.0010007,83049.0,83048.0,0.55986173]
[1743429972671,9.4e-07,83050.0,83049.0,0.017041]
[1743429972873,9.4e-07,83050.0,83049.0,1.36042839]
[1743429973079,9.4e-07,83050.0,83049.0,1.37020476]
[1743429973285,8.4e-07,83072.0,83068.0,0.012038]
[1743429973534,0.001,83115.0,83108.0,0.252682]
[1743429973732,0.06505526,83121.0,83108.0,0.75823643]
[1743429973733,0.01885134,83116.0,83108.0,0.75823643]
[1743429973955,0.01248,83117.0,83108.0,0.76532842]
[1743429974191,0.240592,83129.0,83119.0,0.01203]
[1743429974386,0.01884315,83129.0,83120.0,0.12260386]
[1743429974522,0.01203,83122.0,83120.0,0.12260386]
[1743429974723,0.25310911,83122.0,83121.0,0.00749933]
[1743429974919,0.25310911,83122.0,83082.0,0.481441]
[1743429974920,0.252722,83095.0,83094.0,0.38295057]
[1743429975167,0.252722,83095.0,83094.0,0.12260386]
[1743429975376,0.012033,83101.0,83094.0,0.14168147]
[1743429975377,0.012033,83100.0,83094.0,0.14168147]
[1743429975587,0.252718,83097.0,83095.0,0.12260386]
[1743429975801,0.01884624,83100.0,83095.0,0.12260386]
[1743429975992,0.01884624,83100.0,83096.0,0.01902334]
[1743429976269,0.252716,83097.0,83096.0,0.00698934]
[1743429976473,0.012034,83096.0,83095.0,0.12260386]
[1743429976925,0.03134735,83100.0,83095.0,0.12660386]
[1743429977127,0.01931435,83100.0,83096.0,0.50555443]
[1743429977343,0.01931435,83100.0,83099.0,0.252709]
[1743429977515,0.00046811,83100.0,83099.0,0.37531286]
[1743429977715,0.00046811,83100.0,83099.0,0.38232291]
[1743429977946,0.252663,83115.0,83109.0,0.240645]
[1743429978119,0.012031,83116.0,83110.0,0.12260386]
[1743429978332,0.012032,83111.0,83110.0,0.12959683]
[1743429978626,0.240642,83111.0,83110.0,0.12959683]
[1743429978857,0.240635,83114.0,83110.0,0.12959683]
[1743429979089,0.2406,83126.0,83114.0,0.012031]
[1743429979325,0.2406,83126.0,83110.0,0.14162883]
[1743429979326,0.012028,83139.0,83123.0,0.240607]
[1743429979535,0.012028,83135.0,83124.0,0.12260386]
[1743429979734,0.012029,83131.0,83124.0,0.14158027]
[1743429979943,0.012028,83136.0,83128.0,0.012029]
[1743429980154,0.252595,83137.0,83130.0,0.012029]
[1743429980362,0.012028,83138.0,83132.0,0.012029]
[1743429980566,0.27143999,83136.0,83133.0,0.12260386]
[1743429980771,0.01884099,83136.0,83133.0,0.37009541]
[1743429980982,0.01884099,83136.0,83133.0,0.12951941]
[1743429981193,0.42704567,83160.0,83133.0,0.12951941]
[1743429981194,0.240522,83153.0,83146.0,0.012027]
[1743429981405,0.240533,83149.0,83147.0,0.11960386]
[1743429981617,0.240533,83149.0,83143.0,0.38295057]
[1743429981618,0.240546,83144.0,83143.0,0.38295057]
[1743429981891,0.252573,83144.0,83143.0,0.38295057]
[1743429982095,0.552573,83144.0,83143.0,0.38295057]
[1743429982315,0.56711385,83144.0,83143.0,0.38295057]
[1743429982525,0.55261,83132.0,83118.0,0.38095057]
[1743429982934,0.56715085,83132.0,83118.0,0.38095057]
[1743429983191,0.55261,83132.0,83118.0,0.38095057]
[1743429983404,0.01884212,83132.0,83131.0,0.74427817]
[1743429983614,0.012025,83154.0,83143.0,0.012027]
[1743429983819,0.59388567,83170.0,83144.0,0.38095057]
[1743429983820,0.25257,83145.0,83144.0,0.38095057]
[1743429984019,0.25257,83145.0,83144.0,0.37795057]
[1743429984258,0.26711085,83145.0,83144.0,0.37795057]
[1743429984472,0.25261,83132.0,83131.0,0.00013974]
[1743429985242,0.27145058,83132.0,83131.0,0.00013974]
[1743429985456,0.58599143,83132.0,83131.0,0.00013974]
[1743429985862,0.70859529,83132.0,83131.0,7.4e-07]
[1743429986089,0.58599143,83132.0,83131.0,7.4e-07]
[1743429986291,0.75721944,83132.0,83131.0,7.4e-07]
[1743429986468,0.70876349,83132.0,83131.0,7.4e-07]
[1743429986673,0.70876349,83132.0,83094.0,0.0003364]
[1743429986674,0.252719,83096.0,83094.0,0.0003364]
[1743429986929,0.012034,83095.0,83094.0,0.12308003]
[1743429987156,0.012034,83095.0,83094.0,0.00047617]
[1743429987656,0.03088063,83095.0,83094.0,0.00047617]
[1743429987800,0.012034,83095.0,83094.0,0.00047617]
[1743429987985,0.312034,83095.0,83094.0,0.00047617]
[1743429988190,0.32657485,83095.0,83094.0,0.00047617]
[1743429988834,0.32657485,83095.0,83094.0,0.00547617]
[1743429989034,0.44917871,83095.0,83094.0,1.7e-07]
[1743429989247,0.012038,83070.0,83064.0,0.012038]
[1743429989443,0.012035,83086.0,83078.0,0.240735]
[1743429989776,0.3,83084.0,83079.0,0.3692459]
[1743429990027,0.540721,83084.0,83080.0,0.240731]
[1743429990271,0.3,83084.0,83081.0,0.13463986]
[1743429990509,0.3,83084.0,83081.0,0.12850879]
[1743429990703,0.552757,83084.0,83081.0,0.12850879]
[1743429990844,0.012036,83082.0,83081.0,0.00590493]
[1743429991048,0.32657685,83082.0,83078.0,0.37495057]
[1743429991261,0.25277,83079.0,83078.0,0.37495057]
[1743429991671,0.26731085,83079.0,83078.0,0.37495057]
[1743429991879,0.58616454,83079.0,83078.0,0.37495057]
[1743429992088,0.012038,83064.0,83050.0,0.37495057]
[1743429992266,0.012037,83073.0,83063.0,0.12307197]
[1743429992463,0.012037,83073.0,83067.0,0.012038]
[1743429992666,0.240747,83075.0,83069.0,0.240763]
[1743429993022,0.240757,83072.0,83070.0,0.12260386]
[1743429993225,0.230757,83072.0,83070.0,0.12260386]
[1743429993416,0.252793,83072.0,83070.0,0.12260386]
[1743429993624,0.252804,83068.0,83067.0,0.37495057]
[1743429994171,0.252816,83064.0,83052.0,0.240811]
[1743429994385,0.252816,83064.0,83052.0,0.240812]
[1743429994804,0.252816,83064.0,83054.0,0.240806]
[1743429994999,0.252816,83064.0,83055.0,0.240802]
[1743429995193,0.012038,83064.0,83063.0,0.12307197]
[1743429995397,0.012038,83064.0,83063.0,0.00546811]
[1743429995830,0.312038,83064.0,83063.0,0.00546811]
[1743429996242,0.312038,83064.0,83063.0,0.01046811]
[1743429996647,0.312038,83064.0,83063.0,0.00546811]
[1743429996849,0.312038,83064.0,83063.0,0.00946811]
[1743429997107,0.32657985,83062.0,83061.0,8.8e-07]
[1743429997272,0.252913,83032.0,83018.0,0.37495057]
[1743429998513,0.26409079,83032.0,83031.0,0.0051399]
[1743429999011,0.01117779,83032.0,83031.0,0.12774376]
[1743429999217,0.01117779,83032.0,83031.0,0.13978676]
[1743429999446,0.01117779,83032.0,83031.0,0.59243733]
[1743430000581,0.01117779,83032.0,83031.0,0.59343733]
[1743430000970,0.01117779,83032.0,83031.0,0.59243733]
[1743430001141,0.240839,83043.0,83040.0,0.240847]
[1743430001356,0.252851,83053.0,83046.0,0.240828]
[1743430001544,0.240821,83049.0,83047.0,0.12260386]
[1743430001745,0.012041,83048.0,83047.0,0.12260386]
[1743430001960,0.240821,83049.0,83047.0,0.12260386]
[1743430002160,0.252862,83050.0,83047.0,0.12260386]
[1743430002409,0.03089992,83054.0,83047.0,0.12260386]
[1743430002410,0.240813,83052.0,83049.0,0.012041]
[1743430002608,0.01204,83051.0,83050.0,0.49755443]
[1743430002824,0.01204,83051.0,83050.0,0.37495057]
[1743430003019,0.01204,83051.0,83050.0,0.37295057]
[1743430003793,0.01204,83051.0,83050.0,0.37195057]
[1743430004359,0.25289,83040.0,83035.0,0.37195057]
[1743430004565,0.012042,83037.0,83036.0,0.12260386]
[1743430004787,0.012042,83037.0,83031.0,0.0041399]
[1743430004788,0.252913,83032.0,83031.0,0.0041399]
[1743430004991,0.252906,83035.0,83031.0,0.0041399]
[1743430005233,0.01886224,83037.0,83032.0,0.12260386]
[1743430005533,0.240862,83035.0,83032.0,0.37551686]
[1743430005747,0.252901,83036.0,83032.0,0.12260386]
[1743430005944,0.012043,83033.0,83032.0,0.12260386]
[1743430006324,0.01886224,83037.0,83032.0,0.73542343]
[1743430006529,0.01886224,83037.0,83036.0,0.252901]
[1743430006783,0.01886224,83037.0,83036.0,0.37550486]
[1743430007123,0.240822,83049.0,83045.0,0.240831]
[1743430007327,0.240829,83047.0,83046.0,0.12260386]
[1743430007508,0.25287,83047.0,83046.0,0.12260386]
[1743430007870,0.240828,83047.0,83041.0,0.252886]
[1743430008074,0.3,83059.0,83046.0,0.012041]
[1743430008075,0.01204,83056.0,83046.0,0.012041]
[1743430008225,0.252865,83048.0,83047.0,0.12260386]
[1743430009004,0.252865,83048.0,83036.0,0.012042]
[1743430009005,0.01115379,83052.0,83020.0,0.37195057]
[1743430009207,0.01115379,83052.0,83010.0,0.045336]
[1743430009208,0.252865,83048.0,83047.0,0.12060386]
[1743430009411,0.01115379,83052.0,83050.0,0.240818]
[1743430009611,0.01115379,83052.0,83051.0,0.12260386]
[1743430009827,0.01115379,83052.0,83041.0,0.37195057]
[1743430009828,0.252871,83046.0,83041.0,0.37195057]
[1743430010030,0.240829,83047.0,83042.0,0.12260386]
[1743430010233,0.243827,83048.0,83043.0,0.240838]
[1743430010385,0.003,83048.0,83047.0,0.240827]
[1743430010597,0.002,83048.0,83047.0,0.45057186]
[1743430010792,0.01115379,83052.0,83047.0,0.45057186]
[1743430010793,7.9e-07,83052.0,83051.0,0.252855]
[1743430011021,7.9e-07,83052.0,83051.0,0.49585886]
[1743430011424,0.01885637,83085.0,83084.0,0.252756]
[1743430011626,0.13128251,83124.0,83085.0,0.012035]
[1743430011627,0.012034,83093.0,83085.0,0.012035]
[1743430011826,0.252719,83096.0,83091.0,0.240698]
[1743430012157,0.240689,83095.0,83092.0,0.12060386]
[1743430012287,0.01884952,83097.0,83095.0,0.252719]
[1743430012491,0.01884952,83097.0,83096.0,0.12260386]
[1743430012700,0.01884952,83097.0,83096.0,0.12060386]
[1743430012902,0.0193178,83097.0,83096.0,0.12060386]
[1743430013114,0.2599998,83097.0,83096.0,0.12060386]
[1743430013316,0.0193178,83097.0,83096.0,0.12060386]
[1743430013522,0.0193178,83097.0,83096.0,0.13263786]
[1743430013996,0.00046828,83097.0,83096.0,0.13563786]
[1743430014202,0.02284029,83097.0,83096.0,0.13804437]
[1743430014378,0.02284029,83097.0,83096.0,0.13563786]
[1743430014600,0.02284029,83097.0,83096.0,0.50758843]
[1743430015131,0.02284029,83097.0,83096.0,0.51058843]
[1743430015344,0.02284029,83097.0,83096.0,0.67746843]
[1743430015551,0.02284029,83097.0,83096.0,0.75406843]
[1743430015752,0.02284029,83097.0,83096.0,0.75106843]
[1743430015958,0.02284029,83097.0,83096.0,0.58118843]
[1743430016160,0.02284029,83097.0,83096.0,0.75402843]
[1743430016490,0.00146828,83097.0,83096.0,0.75802843]
[1743430016667,0.00046828,83097.0,83096.0,0.75402843]
[1743430016964,0.00146828,83097.0,83096.0,0.75902843]
[1743430017199,0.00046828,83097.0,83096.0,0.74802843]
[1743430017430,0.00046828,83097.0,83096.0,0.79652843]
[1743430017628,0.00146828,83097.0,83096.0,0.80752843]
[1743430018570,2.8e-07,83097.0,83096.0,2.0309047]
[1743430018761,0.0179109,83108.0,83107.0,0.335085]
[1743430018960,0.0001682,83109.0,83108.0,0.012032]
[1743430019166,0.0001682,83109.0,83108.0,0.13704158]
[1743430019513,0.0001682,83109.0,83108.0,0.13463586]
[1743430019720,0.0001682,83109.0,83108.0,0.13604161]
[1743430020340,0.0011682,83109.0,83108.0,0.13663586]
[1743430020745,0.0011682,83109.0,83108.0,0.13904161]
[1743430020948,0.0011682,83109.0,83108.0,0.14504161]
[1743430021465,0.0001682,83132.0,83131.0,0.252613]
[1743430021647,0.0001682,83132.0,83131.0,0.74599923]
[1743430022056,0.0001682,83132.0,83131.0,0.82359923]
[1743430023430,0.0001682,83132.0,83131.0,0.99035923]
[1743430023638,0.0011682,83132.0,83131.0,0.99535923]
[1743430024051,0.004,83139.0,83131.0,2.2187355]
[1743430024258,0.004,83139.0,83138.0,0.37519486]
[1743430024661,0.016028,83139.0,83138.0,0.12260386]
[1743430024869,0.004,83139.0,83138.0,0.12260386]
[1743430025481,0.004,83139.0,83138.0,0.49352613]
[1743430025683,0.016028,83139.0,83138.0,0.49352613]
[1743430026105,0.016028,83139.0,83138.0,0.49252613]
[1743430026528,0.004,83139.0,83138.0,0.50455413]
[1743430026726,0.005,83139.0,83138.0,0.50955413]
[1743430026940,0.005,83139.0,83138.0,0.51555413]
[1743430027151,0.004,83169.0,83168.0,0.240477]
[1743430027362,0.004,83169.0,83168.0,0.74829074]
[1743430027552,0.004,83169.0,83168.0,0.49338623]
[1743430028006,0.004,83169.0,83168.0,0.50540923]
[1743430028650,0.004,83169.0,83168.0,0.50554913]
[1743430029083,0.016023,83169.0,83168.0,0.49352613]
[1743430029295,0.316023,83169.0,83168.0,0.49852613]
[1743430029503,0.316023,83169.0,83168.0,0.37592227]
[1743430029681,0.33485529,83169.0,83168.0,0.37092227]
[1743430030151,0.33485529,83169.0,83168.0,0.0061399]
[1743430030353,0.34939614,83169.0,83168.0,0.0001399]
[1743430030527,0.36049285,83169.0,83168.0,0.0001399]
[1743430030761,0.36049285,83169.0,83168.0,0.0041399]
[1743430031182,0.36049285,83169.0,83168.0,9e-07]
[1743430031392,0.38268993,83169.0,83168.0,9e-07]
[1743430031595,0.012027,83145.0,83140.0,0.37078237]
[1743430031727,0.012027,83145.0,83141.0,0.12260386]
[1743430031728,0.240553,83142.0,83141.0,0.12260386]
[1743430031925,0.25258,83142.0,83141.0,0.12260386]
[1743430033422,0.25258,83142.0,83140.0,0.00013993]
[1743430033423,0.32656785,83141.0,83140.0,0.00013993]
[1743430033628,0.32656785,83141.0,83140.0,9.3e-07]
[1743430034666,0.33768046,83141.0,83140.0,9.3e-07]
[1743430035067,0.46128432,83141.0,83140.0,9.3e-07]
[1743430035476,0.58388818,83141.0,83140.0,9.3e-07]
[1743430035880,0.58388818,83141.0,83112.0,0.37078237]
[1743430035881,0.012031,83113.0,83112.0,0.37078237]
[1743430036100,0.012031,83113.0,83112.0,0.12274387]
[1743430036101,0.252667,83113.0,83112.0,0.12274387]
[1743430036306,0.56720785,83113.0,83112.0,0.00014001]
[1743430036705,0.58605239,83113.0,83112.0,0.00014001]
[1743430037287,0.75269239,83113.0,83112.0,0.00014001]
[1743430037484,0.73384785,83113.0,83112.0,0.00014001]
[1743430037694,0.552667,83113.0,83112.0,0.00014001]
[1743430037894,0.01128081,83113.0,83112.0,0.37541387]
[1743430038105,0.02331181,83113.0,83112.0,0.12274387]
[1743430038306,0.02331181,83113.0,83112.0,0.00014001]
[1743430038517,0.02331181,83113.0,83112.0,0.00214001]
[1743430038720,0.33785266,83113.0,83112.0,0.00214001]
[1743430038924,0.552679,83109.0,83108.0,4.1e-07]
[1743430039126,0.73385985,83109.0,83108.0,4.8e-07]
[1743430039736,0.56721985,83109.0,83108.0,4.8e-07]
[1743430039948,0.012032,83109.0,83108.0,4.8e-07]
[1743430040570,0.03087786,83109.0,83108.0,4.8e-07]
[1743430040815,0.01884586,83109.0,83108.0,0.12260434]
[1743430041442,0.03087786,83109.0,83108.0,0.12260434]
[1743430041574,0.03087786,83109.0,83108.0,0.12560434]
[1743430041975,0.03087786,83109.0,83108.0,0.00400048]
[1743430042181,0.03087786,83109.0,83108.0,0.00300048]
[1743430042640,0.03087786,83109.0,83108.0,0.00400048]
[1743430042980,0.34541871,83109.0,83108.0,0.00400048]
[1743430043501,0.46802257,83109.0,83108.0,0.00400048]
[1743430043890,0.252756,83084.0,83083.0,0.37078237]
[1743430044129,0.252756,83084.0,83083.0,0.49385451]
[1743430044343,0.252756,83084.0,83083.0,0.00046828]
[1743430044556,0.26729685,83084.0,83083.0,0.00046828]
[1743430044762,0.286147,83084.0,83083.0,0.00046828]
[1743430045174,0.6893823,83084.0,83083.0,2.8e-07]
[1743430045375,0.586147,83084.0,83083.0,2.8e-07]
[1743430045561,0.587147,83084.0,83083.0,2.8e-07]
[1743430046379,0.587147,83084.0,83083.0,0.00100028]
[1743430046630,0.70975086,83084.0,83083.0,2.8e-07]
[1743430046828,0.250342,83062.0,83049.0,0.37078237]
[1743430047183,0.250342,83062.0,83049.0,0.61160237]
[1743430047381,0.250342,83062.0,83050.0,0.240817]
[1743430047606,0.26919735,83062.0,83051.0,0.240814]
[1743430047814,0.01365782,83084.0,83061.0,0.12660386]
[1743430048013,0.252759,83083.0,83078.0,0.012036]
[1743430048215,0.01365782,83084.0,83083.0,0.252759]
[1743430048568,0.01165782,83084.0,83083.0,0.74614523]
[1743430049170,0.03400411,83084.0,83083.0,0.74614523]
[1743430049314,0.03400411,83084.0,83083.0,0.74514523]
[1743430049733,0.03700411,83084.0,83083.0,0.74514523]
[1743430049933,0.03800411,83084.0,83083.0,0.49338623]
[1743430050146,0.00446834,83084.0,83083.0,0.49338623]
[1743430050727,0.00446834,83084.0,83083.0,0.50542223]
[1743430050912,0.00046834,83084.0,83083.0,0.50542223]
[1743430051117,0.24118834,83084.0,83083.0,0.49338623]
[1743430051326,0.25422434,83084.0,83083.0,0.49338623]
[1743430051541,0.25422434,83084.0,83076.0,0.252779]
[1743430051542,0.25278,83076.0,83075.0,0.37078237]
[1743430051754,0.25278,83076.0,83075.0,0.49338623]
[1743430052200,0.240731,83081.0,83076.0,0.012037]
[1743430052404,0.27161021,83083.0,83077.0,0.36334386]
[1743430052626,0.27161021,83083.0,83077.0,0.12260386]
[1743430052627,0.252772,83079.0,83077.0,0.12260386]
[1743430052847,0.252772,83079.0,83077.0,0.12160386]
[1743430053068,0.252772,83079.0,83077.0,0.12060386]
[1743430053275,0.240735,83079.0,83077.0,0.12060386]
[1743430053394,0.012036,83078.0,83077.0,0.12060386]
[1743430053589,0.252773,83078.0,83077.0,0.12060386]
[1743430054649,0.252773,83078.0,83070.0,0.252796]
[1743430054650,0.252797,83071.0,83067.0,0.37078237]
[1743430054814,0.252804,83068.0,83067.0,0.37078237]
[1743430055774,0.01885278,83072.0,83068.0,0.012038]
[1743430055977,0.01885278,83072.0,83069.0,0.12260386]
[1743430056178,0.01885278,83072.0,83070.0,0.23976]
[1743430056380,0.240757,83071.0,83067.0,0.37078237]